bitfinex/quotes_BTCUSD_20250530
["timestamp","ask_amount","ask_price","bid_price","bid_amount"]
[1748648322530,1.15039176,103840.0,103830.0,0.00834147]
[1748648322740,6.19319276,103840.0,103830.0,0.00834147]
[1748648322946,6.21319276,103840.0,103830.0,0.00934147]
[1748648323590,6.22230538,103840.0,103830.0,1e-08]
[1748648323843,6.22230538,103840.0,103820.0,0.02]
[1748648323844,0.90679434,103830.0,103820.0,0.02]
[1748648324052,0.98524864,103830.0,103820.0,0.02]
[1748648324919,1.04660648,103830.0,103820.0,0.02]
[1748648325142,1.04894914,103830.0,103820.0,0.02]
[1748648325352,0.99660648,103830.0,103820.0,0.02]
[1748648325761,1.00060648,103830.0,103820.0,0.02]
[1748648326236,1.00560648,103830.0,103820.0,0.021]
[1748648326864,1.03453148,103830.0,103820.0,0.021]
[1748648327627,1.08453148,103830.0,103820.0,0.021]
[1748648327890,1.03453148,103830.0,103820.0,0.021]
[1748648330106,1.48047063,103830.0,103820.0,0.021]
[1748648330529,1.49501148,103830.0,103820.0,0.021]
[1748648330738,1.5041241,103830.0,103820.0,0.021]
[1748648330969,0.35650325,103830.0,103820.0,0.021]
[1748648331175,0.81698325,103830.0,103820.0,0.021]
[1748648331380,1.4715241,103830.0,103820.0,0.021]
[1748648331801,1.45105364,103830.0,103820.0,0.021]
[1748648332026,1.48315364,103830.0,103820.0,0.021]
[1748648332254,1.53315364,103830.0,103820.0,0.021]
[1748648332494,1.48315364,103830.0,103820.0,0.021]
[1748648332716,1.2636241,103830.0,103820.0,0.021]
[1748648333443,1.26880507,103830.0,103820.0,0.021]
[1748648333701,6.26160607,103830.0,103820.0,0.021]
[1748648333951,6.25024823,103830.0,103820.0,0.021]
[1748648334677,6.23506726,103830.0,103820.0,0.00275545]
[1748648334932,0.21200667,103770.0,103760.0,0.0304]
[1748648335194,0.21200667,103770.0,103760.0,0.03935836]
[1748648335646,0.21200667,103770.0,103760.0,0.03935568]
[1748648336170,0.21200667,103770.0,103760.0,0.27779506]
[1748648336171,0.0299574,103770.0,103760.0,0.27779506]
[1748648336373,0.039594,103770.0,103760.0,0.27538584]
[1748648336585,0.04059344,103770.0,103760.0,0.27638584]
[1748648336807,0.03095693,103770.0,103760.0,0.27638584]
[1748648337024,0.04059334,103770.0,103760.0,0.26601928]
[1748648337498,0.03095702,103770.0,103760.0,0.26601928]
[1748648337711,0.02132061,103770.0,103760.0,0.26602499]
[1748648337942,0.05022948,103770.0,103760.0,0.2570636]
[1748648338170,0.2236916,103770.0,103760.0,0.24675136]
[1748648338400,0.2236916,103770.0,103760.0,0.2563915]
[1748648338649,0.25569782,103770.0,103760.0,0.04436404]
[1748648338880,0.21405556,103770.0,103760.0,0.04436404]
[1748648339121,0.21405556,103770.0,103760.0,0.0354]
[1748648339369,0.21405556,103770.0,103760.0,0.0443765]
[1748648339994,0.21405556,103770.0,103760.0,0.0354]
[1748648340230,0.17305556,103770.0,103760.0,0.06657554]
[1748648340447,0.17305556,103770.0,103760.0,0.26896557]
[1748648340658,0.17305556,103770.0,103760.0,0.06657554]
[1748648341123,0.17305556,103770.0,103760.0,0.0354]
[1748648341573,0.26890986,103770.0,103760.0,0.005]
[1748648341788,0.26890986,103770.0,103760.0,0.01397885]
[1748648342006,0.26890986,103770.0,103760.0,0.01397886]
[1748648342218,0.26890986,103770.0,103760.0,0.005]
[1748648342457,0.26890986,103770.0,103760.0,0.01397916]
[1748648342690,0.26890986,103770.0,103760.0,0.001]
[1748648342899,0.20238993,103760.0,103750.0,0.03539453]
[1748648343106,0.29824423,103760.0,103750.0,0.03539453]
[1748648343971,0.29924423,103760.0,103750.0,0.03839453]
[1748648344622,0.31544423,103760.0,103750.0,0.03839453]
[1748648344833,0.31544423,103760.0,103750.0,0.04741065]
[1748648345069,0.31544423,103760.0,103750.0,0.03839453]
[1748648345286,0.30024423,103760.0,103750.0,0.04039453]
[1748648346561,0.64236423,103760.0,103750.0,0.04039453]
[1748648346777,0.99690508,103760.0,103750.0,0.04039453]
[1748648347002,1.02880508,103760.0,103750.0,0.04039453]
[1748648347865,1.04828069,103760.0,103750.0,0.03739453]
[1748648348078,0.67326069,103760.0,103750.0,0.03539453]
[1748648348289,1.13458069,103760.0,103750.0,0.03639453]
[1748648348500,1.15118069,103760.0,103750.0,0.03639453]
[1748648348795,1.13070508,103760.0,103750.0,0.03639453]
[1748648349028,1.14710508,103760.0,103750.0,0.03639453]
[1748648349258,1.11510508,103760.0,103750.0,0.03839453]
[1748648349492,1.14810508,103760.0,103750.0,0.03839453]
[1748648349926,1.11510508,103760.0,103750.0,0.03839453]
[1748648350846,1.10056423,103760.0,103750.0,0.03839453]
[1748648351988,0.75848423,103760.0,103750.0,0.03839453]
[1748648352259,0.64024423,103760.0,103750.0,0.03839453]
[1748648352487,0.98232423,103760.0,103750.0,0.03839453]
[1748648353155,0.99802423,103760.0,103750.0,0.03839453]
[1748648353826,1.02846508,103760.0,103750.0,0.03839453]
[1748648355180,1.03846508,103760.0,103750.0,0.03839453]
[1748648355611,1.03846508,103760.0,103750.0,0.03739453]
[1748648355830,1.03646508,103760.0,103750.0,0.03539453]
[1748648356049,1.05720774,103760.0,103750.0,0.03539453]
[1748648356270,1.05950062,103760.0,103750.0,0.03539453]
[1748648356927,0.70742062,103760.0,103750.0,0.03539453]
[1748648357148,1.02312062,103760.0,103750.0,0.03539453]
[1748648357365,0.61660881,103740.0,103730.0,0.02]
[1748648357579,0.75406311,103740.0,103730.0,0.02]
[1748648358020,0.74406311,103740.0,103730.0,0.02]
[1748648358234,0.75406311,103740.0,103730.0,0.02]
[1748648358453,0.7783287,103740.0,103730.0,0.02]
[1748648358670,0.7803287,103740.0,103730.0,0.02]
[1748648359151,1.3644087,103740.0,103730.0,0.02]
[1748648359389,1.2116357,103740.0,103730.0,0.02]
[1748648359592,1.20783424,103740.0,103730.0,0.02]
[1748648360017,0.74747424,103740.0,103730.0,0.02]
[1748648360246,1.08955424,103740.0,103730.0,0.02]
[1748648360742,0.37587424,103740.0,103730.0,0.02]
[1748648360973,0.71791424,103740.0,103730.0,0.02]
[1748648361188,0.69745011,103740.0,103730.0,0.02]
[1748648361593,1.03745011,103740.0,103730.0,0.0513]
[1748648361832,1.03749011,103740.0,103730.0,0.0513]
[1748648363561,1.03749011,103740.0,103730.0,0.02]
[1748648364677,1.03749011,103740.0,103730.0,0.0513]
[1748648365114,1.03749011,103740.0,103730.0,0.036]
[1748648365325,1.03749011,103740.0,103730.0,0.02]
[1748648367090,1.03749011,103740.0,103730.0,0.0513]
[1748648367723,1.03749011,103740.0,103730.0,0.036]
[1748648368377,0.69541011,103740.0,103730.0,0.0513]
[1748648368621,1.00850311,103740.0,103730.0,0.0513]
[1748648370105,1.00850311,103740.0,103730.0,0.02]
[1748648370747,1.00850311,103740.0,103730.0,0.0513]
[1748648371172,1.00850311,103740.0,103730.0,0.036]
[1748648371391,1.00850311,103740.0,103730.0,0.02]
[1748648373313,1.00850311,103740.0,103730.0,0.0522]
[1748648373515,1.01760877,103740.0,103730.0,0.0522]
[1748648373935,1.01760877,103740.0,103730.0,0.036]
[1748648374403,0.67556877,103740.0,103730.0,0.0522]
[1748648374616,1.01756877,103740.0,103730.0,0.0522]
[1748648374823,1.00846311,103740.0,103730.0,0.0522]
[1748648375045,1.30846311,103740.0,103730.0,0.02]
[1748648375689,1.00846311,103740.0,103730.0,0.02]
[1748648375897,0.68692724,103740.0,103730.0,0.02]
[1748648376109,1.02888724,103740.0,103730.0,0.02]
[1748648377574,1.04498724,103740.0,103730.0,0.02]
[1748648378188,1.04538724,103740.0,103730.0,0.02]
[1748648378394,1.39538724,103740.0,103730.0,0.02]
[1748648378607,1.47180698,103740.0,103730.0,0.02]
[1748648379033,1.47560844,103740.0,103730.0,0.02]
[1748648379651,1.46044851,103740.0,103730.0,0.02]
[1748648380071,1.47684851,103740.0,103730.0,0.02]
[1748648380275,1.46044851,103740.0,103730.0,0.02]
[1748648380903,1.44394851,103740.0,103730.0,0.02]
[1748648381115,0.21219069,103680.0,103670.0,0.0317]
[1748648381320,0.21219069,103680.0,103670.0,0.06887053]
[1748648381521,0.21219069,103680.0,103670.0,0.0317]
[1748648381735,0.21219069,103680.0,103670.0,0.04074041]
[1748648382009,0.0192889,103680.0,103670.0,0.24391154]
[1748648382220,0.02993368,103680.0,103670.0,0.24491079]
[1748648382435,0.04057864,103680.0,103670.0,0.21469789]
[1748648382707,0.03957864,103680.0,103670.0,0.30099549]
[1748648382927,0.04922277,103680.0,103670.0,0.30099549]
[1748648383173,0.02993312,103680.0,103670.0,0.30099549]
[1748648383350,0.17217116,103690.0,103680.0,0.2025461]
[1748648383588,0.17217116,103690.0,103680.0,0.22390123]
[1748648383841,0.53481476,103700.0,103680.0,0.31286388]
[1748648384072,0.00964255,103700.0,103690.0,0.26245747]
[1748648384290,0.02838861,103710.0,103700.0,0.22179232]
[1748648384510,0.05731476,103710.0,103700.0,0.24314996]
[1748648384731,0.03803041,103710.0,103700.0,0.26243533]
[1748648384954,0.52846664,103710.0,103700.0,0.29928891]
[1748648385187,0.52846664,103710.0,103700.0,0.28964609]
[1748648385425,0.00910566,103730.0,103700.0,0.36721446]
[1748648385662,0.00910566,103730.0,103710.0,0.21452383]
[1748648385663,0.22119407,103730.0,103710.0,0.21452383]
[1748648385909,0.03802613,103730.0,103720.0,0.22175002]
[1748648386144,0.04766654,103730.0,103720.0,0.26735664]
[1748648386380,0.22172919,103730.0,103720.0,0.26735682]
[1748648386819,0.22172919,103730.0,103720.0,0.27699797]
[1748648387100,0.02892094,103730.0,103720.0,0.28712604]
[1748648387318,0.03855986,103730.0,103720.0,0.28712548]
[1748648387543,0.03955986,103730.0,103720.0,0.29676617]
[1748648388010,0.03855977,103730.0,103720.0,0.25241877]
[1748648388228,0.5091785,103740.0,103730.0,0.21208841]
[1748648388479,0.4899,103740.0,103730.0,0.26236802]
[1748648388719,0.07641974,103750.0,103740.0,0.22170699]
[1748648389182,0.09569544,103750.0,103740.0,0.25270699]
[1748648389630,0.11497188,103750.0,103740.0,0.25270699]
[1748648389858,0.09569544,103750.0,103740.0,0.25270699]
[1748648390081,0.11497188,103750.0,103740.0,0.25270699]
[1748648390551,0.07641974,103750.0,103740.0,0.25270699]
[1748648391008,0.08605745,103750.0,103740.0,0.25270699]
[1748648391231,0.08705745,103750.0,103740.0,0.25270699]
[1748648391464,0.07741974,103750.0,103740.0,0.25270699]
[1748648391881,0.07841974,103750.0,103740.0,0.25270699]
[1748648392104,0.08805764,103750.0,103740.0,0.25270699]
[1748648392327,0.09769572,103750.0,103740.0,0.25270699]
[1748648392535,0.10733399,103750.0,103740.0,0.25270699]
[1748648392759,0.11697254,103750.0,103740.0,0.25270717]
[1748648392967,0.11697235,103750.0,103740.0,0.25648492]
[1748648393412,0.10733399,103750.0,103740.0,0.27198492]
[1748648393634,0.002,103750.0,103740.0,0.31846424]
[1748648393845,0.02127552,103750.0,103740.0,0.31846424]
[1748648394056,0.002,103750.0,103740.0,0.31846424]
[1748648396355,0.0212757,103750.0,103740.0,0.31846424]
[1748648396557,0.02891388,103750.0,103740.0,0.27198492]
[1748648396763,0.03955224,103750.0,103740.0,0.27498492]
[1748648397282,0.04055224,103750.0,103740.0,0.27698492]
[1748648397495,0.04029668,103750.0,103740.0,0.27698492]
[1748648397694,0.02086678,103750.0,103740.0,0.32396424]
[1748648397922,0.04014332,103750.0,103740.0,0.32396424]
[1748648398206,0.03050496,103750.0,103740.0,0.32396424]
[1748648398617,0.002,103750.0,103740.0,0.32396424]
[1748648400459,0.2333236,103750.0,103740.0,0.24806834]
[1748648400698,0.04055252,103750.0,103740.0,0.25184627]
[1748648400920,0.04055233,103750.0,103740.0,0.2768851]
[1748648401147,0.68220995,103760.0,103740.0,0.2768851]
[1748648401363,0.02891388,103750.0,103740.0,0.27688445]
[1748648401583,0.61421875,103760.0,103750.0,0.22168562]
[1748648401804,0.48945233,103760.0,103750.0,0.22168562]
[1748648402022,0.72075383,103760.0,103750.0,0.24384772]
[1748648402274,0.71111741,103760.0,103750.0,0.02603846]
[1748648402498,0.71111741,103760.0,103750.0,0.23808617]
[1748648402935,0.71111741,103760.0,103750.0,0.24960026]
[1748648403150,0.71211741,103760.0,103750.0,0.25923834]
[1748648403573,0.50108949,103760.0,103750.0,0.26887624]
[1748648403797,0.49145233,103760.0,103750.0,0.28537624]
[1748648404236,0.49045233,103760.0,103750.0,1.1521539]
[1748648404457,0.002,103760.0,103750.0,1.60454905]
[1748648404945,0.50872079,103790.0,103780.0,0.22162152]
[1748648405161,0.50872079,103790.0,103780.0,0.38290271]
[1748648405378,0.52798999,103790.0,103780.0,0.41500271]
[1748648405597,0.5087206,103790.0,103780.0,0.41500271]
[1748648405810,0.51835506,103790.0,103780.0,0.41500271]
[1748648406026,0.5087206,103790.0,103780.0,0.41500271]
[1748648406283,4.891e-05,103790.0,103780.0,0.41500271]
[1748648406713,4.891e-05,103790.0,103780.0,0.79012037]
[1748648406929,0.00104891,103790.0,103780.0,0.79512037]
[1748648407141,0.00104891,103790.0,103780.0,1.26307467]
[1748648408916,0.17201472,103790.0,103780.0,0.32523111]
[1748648409131,0.01926902,103790.0,103780.0,0.35413728]
[1748648409352,0.02890302,103790.0,103780.0,0.35413728]
[1748648409566,0.03853776,103790.0,103780.0,0.34450217]
[1748648410012,0.02890302,103790.0,103780.0,0.38463728]
[1748648410258,0.03853767,103790.0,103780.0,0.4771485]
[1748648410687,0.23123446,103790.0,103780.0,0.339998]
[1748648410901,0.2312352,103790.0,103780.0,0.44664897]
[1748648411324,0.02890358,103790.0,103780.0,0.44664897]
[1748648411568,0.03853832,103790.0,103780.0,0.45628408]
[1748648411789,0.02890302,103790.0,103780.0,0.45628408]
[1748648412003,0.01926846,103790.0,103780.0,0.45628408]
[1748648412219,0.01926837,103790.0,103780.0,0.47148408]
[1748648412430,0.01926837,103790.0,103780.0,0.48678408]
[1748648412723,0.02890274,103790.0,103780.0,0.48678408]
[1748648412940,0.24086892,103790.0,103780.0,0.34450236]
[1748648413160,0.23123483,103790.0,103780.0,0.36377314]
[1748648413381,0.21196618,103790.0,103780.0,0.32523093]
[1748648413600,0.21196618,103790.0,103780.0,0.33486641]
[1748648414029,0.27875136,103790.0,103780.0,0.005]
[1748648414235,0.29405136,103790.0,103780.0,0.005]
[1748648415085,0.38990566,103790.0,103780.0,0.005]
[1748648415306,0.40640566,103790.0,103780.0,0.005]
[1748648415959,0.37460566,103790.0,103780.0,0.005]
[1748648416172,0.38990566,103790.0,103780.0,0.005]
[1748648416607,0.34890566,103790.0,103780.0,0.005]
[1748648416819,0.25718592,103790.0,103780.0,0.005]
[1748648417236,0.0289059,103780.0,103770.0,0.23127839]
[1748648417465,0.0289059,103780.0,103760.0,0.32987609]
[1748648417466,0.01927199,103770.0,103760.0,0.32987609]
[1748648417709,0.03854473,103770.0,103760.0,0.32987609]
[1748648417938,0.01927199,103770.0,103760.0,0.32987609]
[1748648418151,0.0192719,103770.0,103760.0,0.34537609]
[1748648418362,0.0192719,103770.0,103760.0,0.45308731]
[1748648418578,0.03854464,103770.0,103760.0,0.45308731]
[1748648418788,0.02890813,103770.0,103760.0,0.45308731]
[1748648419442,0.02990813,103770.0,103760.0,0.45708731]
[1748648419650,0.0212719,103770.0,103760.0,0.46208731]
[1748648419858,0.03090803,103770.0,103760.0,0.46208731]
[1748648420526,0.03090803,103770.0,103760.0,0.36957609]
[1748648420733,0.04054426,103770.0,103760.0,0.33887609]
[1748648421384,0.002,103770.0,103760.0,0.33887609]
[1748648421610,0.002,103770.0,103760.0,0.36987609]
[1748648422041,0.002,103770.0,103760.0,0.87294805]
[1748648422255,0.002,103770.0,103760.0,0.96545927]
[1748648422474,0.002,103770.0,103760.0,1.72721778]
[1748648422684,0.002,103770.0,103760.0,1.73721778]
[1748648424175,0.26861288,103810.0,103800.0,0.00963372]
[1748648424399,0.26861288,103810.0,103800.0,0.01012082]
[1748648424608,0.26861288,103810.0,103800.0,0.28712527]
[1748648424609,0.08558426,103810.0,103800.0,0.28712527]
[1748648424814,0.07595147,103810.0,103800.0,0.30639207]
[1748648425475,0.07895147,103810.0,103800.0,0.30739207]
[1748648425701,0.05968635,103810.0,103800.0,0.30739207]
[1748648425913,0.06168635,103810.0,103800.0,0.74570973]
[1748648426347,0.05868635,103810.0,103800.0,0.74470973]
[1748648426571,0.05668635,103810.0,103800.0,0.74370973]
[1748648426999,0.05668635,103810.0,103800.0,0.74570973]
[1748648427226,0.0385269,103820.0,103810.0,0.22155749]
[1748648427439,0.03852598,103820.0,103810.0,0.30443582]
[1748648427645,0.23116791,103820.0,103810.0,0.21192534]
[1748648427859,0.23116791,103820.0,103810.0,0.22155795]
[1748648428057,0.23116791,103820.0,103800.0,0.29649108]
[1748648428058,0.21190501,103820.0,103800.0,0.29649108]
[1748648428325,0.21192543,103810.0,103800.0,0.01312091]
[1748648428558,0.28834517,103810.0,103800.0,0.01312091]
[1748648429020,0.28834517,103810.0,103800.0,0.0034871]
[1748648429021,0.31071238,103810.0,103800.0,0.0034871]
[1748648429251,0.23429264,103810.0,103800.0,0.0004871]
[1748648429470,0.23429264,103810.0,103800.0,0.0034871]
[1748648429687,0.23429264,103810.0,103800.0,0.0054871]
[1748648429908,0.23429264,103810.0,103800.0,0.0024871]
[1748648430118,0.21829264,103810.0,103800.0,0.0024871]
[1748648430332,0.20229264,103810.0,103800.0,0.01512101]
[1748648430544,0.20229264,103810.0,103800.0,0.24206822]
[1748648431187,0.20229264,103810.0,103800.0,0.03975619]
[1748648431618,0.19265966,103810.0,103800.0,0.03012228]
[1748648431866,0.20865966,103810.0,103800.0,0.0054871]
[1748648432082,0.16765966,103810.0,103800.0,0.0054871]
[1748648436650,0.18375966,103810.0,103800.0,0.0054871]
[1748648437102,0.27961396,103810.0,103800.0,0.0054871]
[1748648437722,0.28854285,103810.0,103800.0,0.0054871]
[1748648438102,0.27961396,103810.0,103800.0,0.0054871]
[1748648439717,0.23861396,103810.0,103800.0,0.0054871]
[1748648440587,0.2475471,103810.0,103800.0,0.0054871]
[1748648441018,0.57949396,103810.0,103800.0,0.0054871]
[1748648441451,0.58842712,103810.0,103800.0,0.0054871]
[1748648441659,0.58842706,103810.0,103800.0,0.0054871]
[1748648442077,0.57949396,103810.0,103800.0,0.0054871]
[1748648442299,0.58842835,103810.0,103800.0,0.0054871]
[1748648442506,0.57949396,103810.0,103800.0,0.0054871]
[1748648442935,0.58842831,103810.0,103800.0,0.0054871]
[1748648443201,0.57949396,103810.0,103800.0,0.0054871]
[1748648443418,0.58842721,103810.0,103800.0,0.0054871]
[1748648443917,0.58842624,103810.0,103800.0,0.0054871]
[1748648444154,0.9959137,103810.0,103800.0,0.0054871]
[1748648444401,1.01045455,103810.0,103800.0,0.0054871]
[1748648444881,1.12809455,103810.0,103800.0,0.0024871]
[1748648445305,1.12909455,103810.0,103800.0,0.0004871]
[1748648445761,1.13109455,103810.0,103800.0,0.0004871]
[1748648445977,1.14251337,103810.0,103800.0,0.0004871]
[1748648448271,1.06609363,103810.0,103800.0,0.0004871]
[1748648449350,1.05467481,103810.0,103800.0,0.0004871]
[1748648449563,0.71379481,103810.0,103800.0,0.0004871]
[1748648449745,1.05451481,103810.0,103800.0,0.0004871]
[1748648451232,1.08343781,103810.0,103800.0,0.0004871]
[1748648454942,1.09485663,103810.0,103800.0,0.0004871]
[1748648457609,1.05413663,103810.0,103800.0,0.0004871]
[1748648457847,1.09469663,103810.0,103800.0,0.0004871]
[1748648458074,0.1277773,103810.0,103800.0,0.19316532]
[1748648458283,0.31077936,103810.0,103800.0,0.0004871]
[1748648458494,0.65077936,103810.0,103800.0,0.0004871]
[1748648458967,0.69712021,103810.0,103800.0,0.0004871]
[1748648462259,0.4581197,103810.0,103800.0,0.21243267]
[1748648462485,0.4581197,103810.0,103800.0,0.27793604]
[1748648462694,0.66041234,103810.0,103800.0,0.26830278]
[1748648463143,0.65077973,103810.0,103800.0,0.23549913]
[1748648463350,0.65077973,103810.0,103800.0,0.0004871]
[1748648463351,0.64114694,103810.0,103800.0,0.0004871]
[1748648464023,0.64114694,103810.0,103800.0,0.22206629]
[1748648464277,0.35263214,103810.0,103800.0,0.26389955]
[1748648464496,0.003,103810.0,103800.0,0.67111721]
[1748648464712,0.003,103810.0,103800.0,0.87574181]
[1748648464927,0.003,103810.0,103800.0,0.97159611]
[1748648465144,0.003,103810.0,103800.0,1.65195611]
[1748648465376,0.00913505,103820.0,103810.0,0.56155749]
[1748648465597,0.02819206,103850.0,103840.0,0.22149347]
[1748648465822,0.04032782,103860.0,103850.0,0.22147215]
[1748648466050,0.01141882,103860.0,103850.0,0.22147215]
[1748648466279,0.25997978,103860.0,103850.0,0.0195]
[1748648466528,0.24072431,103860.0,103850.0,0.0195]
[1748648466778,0.20221453,103850.0,103840.0,0.02311239]
[1748648468081,0.21184352,103850.0,103840.0,0.02311239]
[1748648468518,0.21186337,103840.0,103830.0,0.37099366]
[1748648468737,0.21186421,103840.0,103820.0,0.33879991]
[1748648468945,0.00963047,103830.0,103820.0,0.25431991]
[1748648469172,0.21188359,103830.0,103820.0,0.35233748]
[1748648469401,0.21188433,103830.0,103820.0,0.0162]
[1748648469611,0.20227296,103820.0,103810.0,0.41616]
[1748648469832,0.21192422,103810.0,103800.0,0.45222804]
[1748648470049,0.21192516,103810.0,103800.0,0.0172]
[1748648470299,0.21192516,103810.0,103800.0,0.001]
[1748648470943,0.21192516,103810.0,103800.0,0.19416532]
[1748648471156,0.21192516,103810.0,103800.0,0.0014871]
[1748648471376,0.20229255,103810.0,103800.0,0.01112082]
[1748648471579,0.20229255,103810.0,103800.0,0.24141632]
[1748648471802,0.0192655,103810.0,103800.0,0.2606833]
[1748648472020,0.5328011,103820.0,103800.0,0.27031637]
[1748648472238,0.56169678,103820.0,103810.0,0.20229255]
[1748648472451,0.22153678,103820.0,103810.0,0.20229255]
[1748648472664,0.21190501,103820.0,103810.0,0.26153941]
[1748648472873,0.01926327,103820.0,103810.0,0.28080397]
[1748648473088,0.0481584,103820.0,103810.0,0.28080416]
[1748648473296,0.5518847,103830.0,103820.0,0.21190455]
[1748648473508,0.5518847,103830.0,103820.0,0.20227315]
[1748648473728,0.54225367,103830.0,103820.0,0.2624295]
[1748648473995,0.00963084,103830.0,103820.0,0.28169258]
[1748648474209,0.03852189,103830.0,103820.0,0.27205988]
[1748648474435,0.02889114,103830.0,103820.0,0.28785988]
[1748648474643,0.00963029,103830.0,103820.0,0.30385988]
[1748648474851,0.01926086,103830.0,103820.0,0.30385988]
[1748648475072,0.02889161,103830.0,103820.0,0.30385988]
[1748648475298,0.02889161,103830.0,103810.0,0.05261416]
[1748648475299,0.20227296,103820.0,103810.0,0.05261416]
[1748648475514,0.20229255,103810.0,103800.0,0.0172871]
[1748648475731,0.20229255,103810.0,103800.0,0.0014871]
[1748648476840,0.20229255,103810.0,103800.0,0.0054871]
[1748648477696,0.20229255,103810.0,103800.0,0.01512091]
[1748648477910,0.20229255,103810.0,103800.0,0.05147419]
[1748648478129,0.20229255,103810.0,103800.0,0.0054871]
[1748648478566,0.20329255,103810.0,103800.0,0.0094871]
[1748648478779,0.20329255,103810.0,103800.0,0.01912101]
[1748648479241,0.20329255,103810.0,103800.0,0.02875482]
[1748648479685,0.001,103810.0,103800.0,0.25818632]
[1748648479905,0.001,103810.0,103800.0,0.30925312]
[1748648480143,0.02889448,103820.0,103810.0,0.22155749]
[1748648480362,0.02889448,103820.0,103810.0,0.22155767]
[1748648480363,0.24079986,103820.0,103810.0,0.22155767]
[1748648480605,0.23116837,103820.0,103810.0,0.21192516]
[1748648480817,0.23116837,103820.0,103810.0,0.27174869]
[1748648481245,0.21190501,103820.0,103810.0,0.25248357]
[1748648481678,0.21190501,103820.0,103810.0,0.25548357]
[1748648481888,0.20227315,103820.0,103810.0,0.05319102]
[1748648482106,0.20227315,103820.0,103810.0,0.003]
[1748648482318,0.31372745,103820.0,103810.0,0.005]
[1748648482534,0.29812745,103820.0,103810.0,0.005]
[1748648483219,0.29812745,103820.0,103810.0,0.19765966]
[1748648483432,0.30775922,103820.0,103810.0,0.005]
[1748648483648,0.30775922,103820.0,103810.0,0.21692534]
[1748648483864,0.30775922,103820.0,103810.0,0.05267423]
[1748648484552,0.30775922,103820.0,103810.0,0.005]
[1748648484766,0.32335922,103820.0,103810.0,0.005]
[1748648485217,0.33985922,103820.0,103810.0,0.005]
[1748648486120,0.67985922,103820.0,103810.0,0.005]
[1748648487426,0.67985922,103820.0,103810.0,0.002]
[1748648487849,0.67985922,103820.0,103810.0,0.003]
[1748648488064,0.67985922,103820.0,103810.0,0.001]
[1748648488498,0.69440007,103820.0,103810.0,0.002]
[1748648489636,0.99440007,103820.0,103810.0,0.002]
[1748648490509,0.99440007,103820.0,103810.0,0.001]
[1748648490726,0.69440007,103820.0,103810.0,0.001]
[1748648490951,1.15284007,103820.0,103810.0,0.001]
[1748648491161,0.0096327,103810.0,103800.0,0.20279923]
[1748648491375,0.0096327,103810.0,103800.0,0.26546963]
[1748648491376,0.31741197,103810.0,103800.0,0.26546963]
[1748648491588,0.01926456,103810.0,103800.0,0.27510289]
[1748648491800,0.01926447,103810.0,103800.0,0.30700289]
[1748648492010,0.03189467,103820.0,103810.0,0.22155749]
[1748648492225,0.02889476,103820.0,103810.0,0.22155749]
[1748648492445,0.03852672,103820.0,103810.0,0.22155749]
[1748648492659,0.23116782,103820.0,103810.0,0.24872156]
[1748648492876,0.22153651,103820.0,103810.0,0.20229255]
[1748648493303,0.01926336,103820.0,103810.0,0.22155749]
[1748648493533,0.02889522,103820.0,103810.0,0.21192516]
[1748648493751,0.02889467,103820.0,103810.0,0.22155749]
[1748648493964,0.89144433,103830.0,103820.0,0.21190511]
[1748648494201,0.98729863,103830.0,103820.0,0.21190511]
[1748648494605,0.98729863,103830.0,103820.0,0.23116856]
[1748648494606,0.55188433,103830.0,103820.0,0.23116856]
[1748648494865,0.89144433,103830.0,103820.0,0.23116856]
[1748648495080,0.89144433,103830.0,103820.0,0.00963205]
[1748648495300,0.89344433,103830.0,103820.0,0.00963205]
[1748648495742,0.01926308,103820.0,103810.0,0.30448607]
[1748648496628,0.01926308,103820.0,103810.0,0.28818607]
[1748648497040,0.01926308,103820.0,103810.0,0.27258607]
[1748648497251,0.03852616,103820.0,103810.0,0.27258607]
[1748648497478,0.34963094,103830.0,103820.0,0.22153614]
[1748648497697,0.6987016,103830.0,103820.0,0.2603537]
[1748648497902,0.90095527,103830.0,103820.0,0.26035388]
[1748648498752,0.90595527,103830.0,103820.0,0.22153669]
[1748648498979,0.01463038,103830.0,103820.0,0.22153669]
[1748648499211,0.005,103830.0,103820.0,0.67991743]
[1748648499436,0.005,103830.0,103820.0,0.77577173]
[1748648499660,0.005,103830.0,103820.0,0.98508295]
[1748648499886,0.005,103830.0,103820.0,1.32508295]
[1748648500105,0.57594697,103870.0,103860.0,0.22145082]
[1748648500329,0.57594697,103870.0,103860.0,0.61904079]
[1748648500330,0.883604,103870.0,103860.0,0.61904079]
[1748648500558,1.55333696,103870.0,103860.0,0.40721766]
[1748648500778,1.21333696,103870.0,103860.0,0.40721766]
[1748648501004,1.06343696,103870.0,103860.0,0.40721766]
[1748648501227,1.06343696,103870.0,103850.0,0.63830254]
[1748648501228,0.71380973,103870.0,103850.0,0.63830254]
[1748648501446,0.55260797,103870.0,103860.0,0.22145109]
[1748648501702,0.01925576,103860.0,103850.0,0.7037623]
[1748648502175,0.70965013,103870.0,103860.0,0.22145082]
[1748648502397,0.02140021,103870.0,103860.0,0.62866848]
[1748648502615,0.03102725,103870.0,103860.0,0.62866848]
[1748648502829,0.03102716,103870.0,103860.0,0.71811259]
[1748648503035,0.0406543,103870.0,103860.0,0.71811259]
[1748648503251,0.00214686,103870.0,103860.0,0.71811259]
[1748648503463,0.02040067,103870.0,103860.0,0.71811259]
[1748648503909,0.22145045,103860.0,103850.0,0.28891667]
[1748648504125,0.02888335,103860.0,103850.0,0.62868981]
[1748648504395,0.03851151,103860.0,103850.0,0.62868981]
[1748648504611,0.01925529,103860.0,103850.0,0.63168981]
[1748648504826,0.22157682,103870.0,103860.0,0.21182295]
[1748648505053,0.22157682,103870.0,103860.0,0.61904061]
[1748648505274,0.22157682,103870.0,103860.0,0.70658181]
[1748648505275,0.02902845,103870.0,103860.0,0.70658181]
[1748648505506,0.21194987,103870.0,103860.0,0.0875412]
[1748648505721,0.01925557,103860.0,103850.0,0.63368999]
[1748648505937,0.02888391,103860.0,103850.0,0.63369008]
[1748648506156,0.22145109,103860.0,103850.0,0.20721463]
[1748648506394,0.21182331,103860.0,103850.0,0.01262927]
[1748648506613,0.00014686,103870.0,103860.0,0.23107897]
[1748648506830,0.00014686,103870.0,103860.0,0.72288841]
[1748648507040,0.00977353,103870.0,103860.0,0.75478841]
[1748648507255,0.00014686,103870.0,103860.0,0.75478841]
[1748648507722,0.00977353,103870.0,103860.0,0.75478841]
[1748648507940,0.00014686,103870.0,103860.0,0.75478841]
[1748648508187,0.00977353,103870.0,103860.0,0.75478841]
[1748648508393,0.01940039,103870.0,103860.0,0.75478841]
[1748648508611,0.00977353,103870.0,103860.0,0.75478841]
[1748648508827,0.01940039,103870.0,103860.0,0.75478841]
[1748648509519,0.02902734,103870.0,103860.0,0.75478841]